bitfinex/quotes_ETHUSD_20250425
["timestamp","ask_amount","ask_price","bid_price","bid_amount"]
[1745545416434,0.8317,1772.0,1771.7,0.16818319]
[1745545416619,1.59556175,1771.8,1771.1,0.7627]
[1745545416784,0.8317,1771.7,1771.2,0.15604548]
[1745545418724,0.8317,1771.7,1771.3,0.7627]
[1745545419105,0.8317,1771.7,1771.4,0.1563832]
[1745545423228,5.7591,1771.8,1771.4,0.1563832]
[1745545425796,5.003,1771.8,1771.4,0.1563832]
[1745545429163,5.003,1771.8,1771.5,0.83]
[1745545429528,5.003,1771.8,1771.6,0.15731566]
[1745545429731,5.003,1771.8,1771.5,0.83]
[1745545435727,5.003,1771.8,1771.6,0.15731566]
[1745545436629,5.31764197,1771.8,1771.3,0.8331]
[1745545437264,5.31764197,1771.8,1771.4,0.15813659]
[1745545439768,0.821,1771.7,1771.4,0.15813659]
[1745545439972,4.58486175,1771.7,1771.4,0.15813659]
[1745545440139,0.821,1771.6,1771.4,0.15813659]
[1745545440337,0.821,1771.6,1771.1,0.8029]
[1745545440562,0.821,1771.6,1771.2,0.14646189]
[1745545440762,1.13564197,1771.6,1771.2,0.14646189]
[1745545440966,1.65705654,1771.6,1771.2,0.14646189]
[1745545441439,1.65705654,1771.6,1770.9,0.8242]
[1745545441638,1.13564197,1771.6,1770.9,0.8242]
[1745545441840,0.31464197,1771.5,1771.0,0.13651224]
[1745545442446,1.13564197,1771.6,1771.1,0.8242]
[1745545442848,1.13564197,1771.6,1771.2,0.13569093]
[1745545443163,1.58956175,1771.3,1771.2,0.13569093]
[1745545443474,6.90320372,1771.3,1771.2,0.13569093]
[1745545443645,7.59352409,1771.3,1770.6,0.8242]
[1745545444075,7.59352409,1771.3,1770.7,0.12732827]
[1745545444290,0.31464197,1771.2,1770.7,0.12732827]
[1745545444442,0.31464197,1771.2,1770.6,0.8242]
[1745545444946,0.31464197,1771.2,1770.7,0.12732827]
[1745545445169,5.8247,1771.3,1770.8,0.8242]
[1745545445354,5.8247,1771.3,1770.8,0.95119502]
[1745545446802,4.999,1771.3,1770.8,0.95119502]
[1745545447890,0.7797,1771.5,1770.9,0.7508]
[1745545448258,6.09254197,1771.6,1771.1,0.7508]
[1745545448580,6.09254197,1771.6,1771.2,0.12607513]
[1745545448782,5.7779,1771.6,1771.2,0.12607513]
[1745545454891,4.999,1771.6,1771.2,0.12607513]
[1745545455491,0.31464197,1771.7,1771.3,0.8112]
[1745545455658,0.31464197,1771.7,1771.4,0.12484126]
[1745545455983,4.11684197,1771.8,1771.4,0.12484126]
[1745545457891,5.10481234,1771.8,1771.4,0.12484126]
[1745545459195,0.76386175,1771.7,1771.4,0.12484126]
[1745545459354,0.803,1771.6,1771.4,0.12484126]
[1745545459761,0.803,1771.6,1771.1,0.8312]
[1745545459961,0.803,1771.6,1771.2,0.12492455]
[1745545461597,0.7567,1771.7,1771.2,0.12492455]
[1745545461806,3.31464197,1771.8,1771.3,0.7895]
[1745545462167,0.31464197,1771.8,1771.4,0.12410342]
[1745545465106,0.31538455,1771.8,1771.4,0.12410342]
[1745545466691,0.31538455,1771.8,1771.5,0.7616]
[1745545466890,0.31538455,1771.8,1771.6,0.12336]
[1745545467692,3.31538455,1772.0,1771.6,0.12336]
[1745545468705,0.31538455,1772.0,1771.6,0.12336]
[1745545469294,5.31438455,1772.1,1771.5,0.7616]
[1745545469820,5.31438455,1772.1,1771.6,0.12104938]
[1745545470018,5.31438455,1772.1,1771.7,0.7685]
[1745545470228,4.999,1772.1,1771.7,0.7685]
[1745545470445,1.09258455,1772.3,1771.7,0.7685]
[1745545470446,0.31538455,1772.3,1771.7,0.7685]
[1745545470938,4.994,1772.4,1771.8,0.91682861]
[1745545471312,4.994,1772.4,1771.8,0.7966]
[1745545473024,0.31511018,1772.5,1771.9,0.8056]
[1745545473537,3.0,1772.6,1772.1,0.8056]
[1745545473701,3.0,1772.6,1772.2,0.11666558]
[1745545473903,4.994,1772.7,1772.2,0.11666558]
[1745545474233,4.994,1772.7,1772.3,0.8056]
[1745545474598,4.994,1772.7,1772.4,0.11584533]
[1745545476707,0.7874,1772.5,1772.4,0.11584533]
[1745545476902,0.7874,1772.5,1772.0,0.8026]
[1745545477098,0.7874,1772.5,1772.1,0.11592157]
[1745545477831,4.07836545,1772.6,1772.1,0.11592157]
[1745545478144,4.07836545,1772.6,1772.2,0.7512]
[1745545478442,3.76386175,1772.6,1772.3,0.11510123]
[1745545480305,3.76386175,1772.6,1772.2,0.7512]
[1745545485712,0.7568,1772.5,1772.3,0.11353363]
[1745545485910,0.7568,1772.5,1771.9,0.7643]
[1745545486109,0.7568,1772.3,1772.0,0.11476422]
[1745545487438,0.76386175,1772.5,1772.0,0.11476422]
[1745545487645,6.07032278,1772.6,1772.1,0.8274]
[1745545487944,1.1274461,1772.5,1772.2,0.1142736]
[1745545488148,1.1274461,1772.5,1772.1,0.8274]
[1745545488315,1.1274461,1772.5,1772.2,0.1142736]
[1745545488514,0.76386175,1772.4,1772.1,0.8274]
[1745545488726,0.76386175,1772.4,1772.2,0.1142736]
[1745545488945,0.76386175,1772.4,1772.1,0.8274]
[1745545489148,0.76386175,1772.4,1772.2,0.1142736]
[1745545489444,0.76386175,1772.4,1772.1,0.8274]
[1745545489846,0.76386175,1772.4,1772.2,0.1142736]
[1745545490148,0.76386175,1772.4,1772.1,0.8274]
[1745545490320,0.76386175,1772.4,1772.2,0.1142736]
[1745545490525,0.76386175,1772.4,1772.1,0.8274]
[1745545490727,0.76386175,1772.4,1772.2,0.1142736]
[1745545490948,0.76386175,1772.4,1772.1,0.8274]
[1745545491195,0.76386175,1772.4,1772.2,0.1142736]
[1745545491448,0.76386175,1772.4,1772.1,0.8274]
[1745545491757,0.76386175,1772.4,1772.2,0.1142736]
[1745545492049,0.76386175,1772.4,1772.1,0.8274]
[1745545492526,0.76386175,1772.4,1772.2,0.1142736]
[1745545492748,0.76386175,1772.4,1772.1,0.8274]
[1745545493046,0.76386175,1772.4,1772.2,0.1142736]
[1745545493352,0.76386175,1772.4,1772.1,0.8274]
[1745545493514,0.76386175,1772.4,1772.2,0.1142736]
[1745545493715,0.76386175,1772.4,1772.1,0.8274]
[1745545493916,0.76386175,1772.4,1772.2,0.1142736]
[1745545494116,0.76386175,1772.4,1772.1,0.8274]
[1745545494330,0.76386175,1772.4,1772.2,0.1142736]
[1745545494649,0.76386175,1772.4,1772.1,0.8274]
[1745545495055,0.76386175,1772.4,1772.2,0.1142736]
[1745545495423,0.76386175,1772.4,1772.0,0.7502]
[1745545495863,0.76386175,1772.4,1772.1,0.1146838]
[1745545496419,1.07920941,1772.4,1772.1,0.1146838]
[1745545497643,0.31534766,1772.4,1772.2,0.7872]
[1745545498359,1.07920941,1772.6,1772.2,0.7872]
[1745545499261,0.31534766,1772.5,1772.2,0.7872]
[1745545506056,0.31534766,1772.5,1772.3,0.11418688]
[1745545506261,0.31534766,1772.5,1772.2,0.7872]
[1745545506471,0.31534766,1772.5,1772.4,0.11385429]
[1745545506671,0.31534766,1772.5,1772.3,0.11434186]
[1745545506871,0.31534766,1772.5,1772.4,0.11393177]
[1745545507283,0.31534766,1772.5,1772.2,0.7872]
[1745545507482,0.31534766,1772.5,1772.4,0.11408674]
[1745545507685,0.31534766,1772.5,1772.3,0.11449683]
[1745545507884,0.31534766,1772.5,1772.4,0.11408674]
[1745545508085,1.12534766,1772.5,1772.4,0.11408674]
[1745545508288,0.81,1772.4,1771.8,0.7934]
[1745545508460,0.76386175,1772.3,1771.8,0.7934]
[1745545508784,0.31534766,1772.2,1771.9,0.11416202]
[1745545511389,1.07920941,1772.3,1771.9,0.11416202]
[1745545521893,1.07920941,1772.3,1771.8,0.7934]
[1745545523398,0.7951,1772.2,1771.8,0.7934]
[1745545523574,0.7951,1772.2,1771.9,0.1067445]
[1745545523894,0.7951,1772.0,1771.1,4.988]
[1745545524063,0.7951,1772.0,1771.2,1.4074]
[1745545524064,0.7923,1771.8,1771.2,1.4074]
[1745545524875,0.7923,1771.8,1771.3,0.8181]
[1745545526598,0.7923,1771.8,1771.2,0.604]
[1745545526807,0.76386175,1771.7,1771.1,0.7779]
[1745545527796,0.7694,1771.6,1771.1,0.7779]
[1745545529705,0.7694,1771.6,1770.9,3.58898568]
[1745545529907,0.8052,1771.4,1770.9,1.34458568]
[1745545530067,0.8052,1771.4,1770.8,0.7556]
[1745545530704,0.8052,1771.4,1770.6,0.815]
[1745545530902,0.821,1770.6,1770.5,0.03850955]
[1745545534570,0.821,1770.6,1770.1,0.815]
[1745545534771,0.821,1770.6,1770.2,0.10984049]
[1745545535075,0.821,1770.6,1770.1,0.815]
[1745545535275,0.821,1770.6,1770.3,0.10939304]
[1745545535506,5.74786175,1770.9,1770.2,0.10980414]
[1745545535689,5.7712,1770.9,1770.4,0.93378198]
[1745545535886,4.984,1770.9,1770.4,0.8248]
[1745545536233,0.7872,1771.1,1770.5,0.10857097]
[1745545537799,0.7872,1771.1,1770.6,0.7755]
[1745545537998,0.7872,1771.1,1770.7,0.10737778]
[1745545538300,0.7872,1771.1,1770.6,0.7755]
[1745545538515,0.7872,1771.1,1770.8,0.10696691]
[1745545538666,4.985,1771.2,1770.6,0.7755]
[1745545538667,5.7454,1771.2,1770.7,0.10737778]
[1745545538871,5.7454,1771.2,1770.9,0.10655609]
[1745545539182,0.8282,1771.9,1770.9,0.89029661]
[1745545539377,16.931,1772.0,1770.9,0.89029661]
[1745545539378,0.8282,1771.6,1770.9,0.89029661]
[1745545540218,0.8282,1771.6,1770.9,0.785]
[1745545541928,6.50266175,1771.8,1771.0,0.801]
[1745545543240,0.76386175,1771.6,1771.0,0.801]
[1745545547950,0.7927,1771.5,1771.0,0.801]
[1745545550043,0.76386175,1771.6,1771.0,0.801]
[1745545550808,5.7485,1771.7,1771.0,0.801]
[1745545553609,6.39973617,1771.7,1771.0,0.801]
[1745545556969,0.76386175,1771.6,1771.0,0.801]
[1745545563826,0.76386175,1771.6,1771.4,0.03850955]
[1745545564967,1.07925176,1771.6,1771.4,0.03850955]
[1745545568058,0.31539001,1771.6,1771.4,0.03850955]
[1745545569254,0.31539001,1771.5,1771.4,0.03850955]
[1745545569663,0.31539001,1771.6,1771.4,0.03850955]
[1745545570083,0.31539001,1771.5,1771.4,0.03850955]
[1745545570401,0.31539001,1771.6,1771.4,0.81220955]
[1745545571047,0.31539001,1771.9,1771.4,0.81220955]
[1745545571263,0.76386175,1772.0,1771.4,0.81220955]
[1745545571264,0.31539001,1771.8,1771.4,0.81220955]
[1745545571595,0.3165757,1771.9,1771.4,0.81220955]
[1745545572043,0.3165757,1771.8,1771.4,0.81220955]
[1745545572485,0.76386175,1772.0,1771.4,0.81220955]
[1745545572887,1.59556408,1772.0,1771.4,0.81220955]
[1745545574967,1.53846175,1771.8,1771.4,0.81220955]
[1745545575983,0.7746,1771.8,1771.4,0.81220955]
[1745545576288,5.36556408,1772.0,1771.4,0.81220955]
[1745545576460,4.59556408,1772.0,1771.4,0.81220955]
[1745545576661,0.45955641,1771.9,1771.4,0.81220955]
[1745545577591,1.23675641,1771.9,1771.4,0.81220955]
[1745545578098,0.76386175,1771.8,1771.4,0.81220955]
[1745545578696,0.76386175,1771.8,1771.4,0.7737]
[1745545578995,1.23675641,1771.9,1771.4,0.7737]
[1745545579290,0.45955641,1771.9,1771.4,0.7737]
[1745545581396,1.59556408,1772.0,1771.4,0.7737]
[1745545581598,0.83170233,1772.0,1771.4,0.7737]
[1745545582464,1.59556408,1772.0,1771.4,0.7737]
[1745545590599,0.8331,1771.7,1771.4,0.7737]
[1745545590983,5.8131,1771.7,1771.4,0.7737]
[1745545591310,0.58131,1771.6,1771.4,0.7737]
[1745545597801,4.98,1771.7,1771.4,0.7737]
[1745545600224,4.98,1771.7,1771.3,0.8102]
[1745545600428,0.8103,1771.5,1771.1,0.8102]
[1745545602317,1.26771618,1771.5,1771.1,0.8102]
[1745545603585,3.0,1771.6,1771.1,0.8102]
[1745545603844,5.7978,1771.7,1771.1,0.8102]
[1745545604423,4.98,1771.7,1771.1,0.8102]
[1745545604730,4.98,1771.7,1771.1,1.57406175]
[1745545604935,4.98,1771.7,1771.2,0.8104]
[1745545605796,3.0,1771.9,1771.2,0.8104]
[1745545606020,4.976,1772.0,1771.2,0.8104]
[1745545606391,7.976,1772.0,1771.2,0.8104]
[1745545606591,8.85538,1772.0,1771.2,0.8104]
[1745545607027,8.85538,1772.0,1771.3,0.8139]
[1745545608223,9.61924175,1772.0,1771.3,0.8139]
[1745545608723,9.5807322,1772.0,1771.3,0.8139]
[1745545613623,8.7013522,1772.0,1771.3,0.8139]
[1745545613926,7.93749045,1772.0,1771.3,1.57776175]
[1745545614107,7.93749045,1772.0,1771.4,0.7856]
[1745545616157,3.0,1772.0,1771.4,0.7856]
[1745545616507,4.976,1772.1,1771.4,0.7856]
[1745545617214,4.976,1772.1,1771.5,0.7795]
[1745545617710,3.76386175,1772.0,1771.5,0.7795]
[1745545622236,5.4736,1772.1,1771.5,0.7795]
[1745545622443,4.976,1772.1,1771.5,0.7795]
[1745545626744,4.926,1772.1,1771.5,0.7795]
[1745545628140,3.76386175,1772.0,1771.5,0.7795]
[1745545633420,0.3164069,1771.9,1771.5,0.7795]
[1745545634255,0.31640656,1771.8,1771.5,0.7795]
[1745545634918,1.08026831,1771.8,1771.5,0.7795]
[1745545635354,0.31640656,1771.7,1771.5,0.7795]
[1745545635862,0.31640656,1771.6,1771.5,0.7795]
[1745545636765,0.31640656,1771.7,1771.5,0.7795]
[1745545637461,0.31640656,1771.6,1771.5,0.7795]
[1745545637862,0.31640656,1771.7,1771.5,0.7795]
[1745545638761,0.31640656,1771.6,1771.5,0.7795]
[1745545639332,5.73486175,1771.8,1771.5,0.7795]
[1745545639559,6.60834793,1771.8,1771.5,0.7795]
[1745545639736,0.31624237,1771.7,1771.5,0.7795]
[1745545640457,0.31624237,1771.6,1771.5,0.7795]
[1745545640629,0.31624237,1771.6,1771.3,0.8124]
[1745545640830,1.08010412,1771.6,1770.6,5.39760611]
[1745545641036,1.08010412,1771.6,1770.8,0.8124]
[1745545641457,0.31624237,1771.5,1770.8,0.8124]
[1745545641753,0.76386175,1771.4,1770.8,0.8124]
[1745545642125,5.73486175,1771.4,1770.8,0.8124]
[1745545642623,6.05110412,1771.4,1770.8,0.8124]
[1745545643163,5.28724237,1771.4,1770.8,0.8124]
[1745545643854,4.971,1771.4,1770.8,0.8124]
[1745545645840,4.971,1771.4,1771.0,0.7996]
[1745545646388,0.31559731,1771.6,1771.0,0.7996]
[1745545647531,4.972,1771.7,1771.0,0.7996]
[1745545648563,5.28759731,1771.7,1771.0,0.7996]
[1745545649436,4.972,1771.7,1771.0,0.7996]
[1745545651177,4.971,1772.0,1771.2,0.8143]
[1745545651476,0.31569633,1772.0,1771.4,0.8143]
[1745545651778,0.31569633,1772.0,1771.5,0.8143]
[1745545652369,0.31569633,1772.2,1771.5,0.8143]
[1745545653859,0.29940954,1772.2,1771.5,0.8143]
[1745545654063,5.73486175,1772.3,1771.5,0.8143]
[1745545655778,4.971,1772.3,1771.5,3.76386175]
[1745545655968,4.971,1772.3,1771.6,1.14338618]
[1745545656287,4.971,1772.3,1771.7,0.767]
[1745545656858,17.69786175,1772.5,1771.7,0.767]
[1745545657056,21.9,1772.5,1771.8,1.53086175]
[1745545657261,4.966,1772.5,1771.9,0.8011]
[1745545657797,4.966,1772.5,1772.0,0.8011]
[1745545665800,4.966,1772.5,1772.1,0.7833]
[1745545666307,5.72886175,1772.8,1772.1,0.7833]
[1745545666869,4.965,1772.8,1772.1,0.7833]
[1745545667066,17.69586175,1773.2,1772.2,0.76386175]
[1745545667368,4.965,1773.1,1772.3,0.7651]
[1745545667562,4.965,1773.1,1772.3,3.0]
[1745545667768,4.965,1773.1,1772.5,0.7651]
[1745545668804,6.08844842,1773.6,1772.7,0.7778]
[1745545668964,3.0,1773.5,1772.7,0.7778]
[1745545669277,3.76386175,1773.5,1772.7,0.7778]
[1745545670061,0.76386175,1773.5,1772.7,0.7778]
[1745545670499,3.76386175,1773.5,1772.7,0.7778]
[1745545671904,5.26804842,1773.6,1772.7,0.7778]
[1745545672090,5.26804842,1773.6,1772.9,0.8161]
[1745545672091,0.30304842,1773.6,1772.9,0.8161]
[1745545672265,0.30304842,1773.6,1772.9,0.42480369]
[1745545672462,0.30304842,1773.6,1773.0,0.8161]
[1745545677339,0.30304842,1773.6,1773.1,0.8079]
[1745545679926,1.06691017,1773.6,1773.1,0.8079]
[1745545680414,0.30304842,1773.6,1773.1,0.8079]
[1745545685010,1.06691017,1773.6,1773.1,0.8079]
[1745545685205,1.06691017,1773.6,1773.1,1.38499]
[1745545687135,1.06691017,1773.6,1772.4,0.3]
[1745545687136,0.76386175,1773.2,1772.9,0.7644]
[1745545687435,1.56446175,1773.4,1772.9,0.7644]
[1745545688230,0.76386175,1773.0,1772.7,0.7644]
[1745545688403,0.76386175,1773.0,1772.5,0.8245]
[1745545689239,1.07834671,1773.0,1772.5,0.8245]
[1745545689747,0.7595,1772.9,1772.5,0.8245]
[1745545691061,0.7595,1772.9,1772.2,0.7827]
[1745545691257,0.7595,1772.9,1772.2,1.35667]
[1745545691746,1.18955992,1772.9,1772.2,1.35667]
[1745545692053,1.18955992,1772.9,1772.3,0.77]
[1745545692650,1.07834671,1773.0,1772.3,0.77]
[1745545692860,0.31448496,1773.0,1772.3,0.77]
[1745545693163,4.957,1773.1,1772.4,0.77]
[1745545694759,5.56056525,1773.1,1772.4,0.77]
[1745545696535,5.87550976,1773.1,1772.4,0.77]
[1745545697023,5.87552306,1773.1,1772.4,0.77]
[1745545697845,5.56056525,1773.1,1772.4,0.77]
[1745545698157,4.957,1773.1,1772.4,0.77]
[1745545698659,5.72086175,1773.1,1772.4,0.77]
[1745545701362,3.8052,1773.0,1772.4,0.77]
[1745545701688,0.76386175,1772.9,1772.4,0.77]
[1745545702160,4.12015781,1773.0,1772.4,0.77]
[1745545702363,0.41201578,1772.9,1772.4,0.77]
[1745545703152,3.31495781,1773.0,1772.4,0.77]
[1745545703666,3.0,1773.0,1772.4,0.77]
[1745545705683,3.31477453,1773.0,1772.4,0.77]
[1745545708174,0.8076,1772.9,1772.4,0.77]
[1745545709386,1.57146175,1772.9,1772.4,0.77]
[1745545711350,1.99128979,1772.9,1772.4,0.77]
[1745545714688,2.30606432,1772.9,1772.4,0.77]
[1745545716201,0.31477453,1772.8,1772.4,0.77]
[1745545716531,4.955,1772.7,1772.4,0.77]
[1745545716799,5.48197745,1772.7,1772.4,0.77]
[1745545717402,5.79675198,1772.7,1772.4,0.77]
[1745545718103,5.48197745,1772.7,1772.4,0.77]
[1745545718901,5.79675198,1772.7,1772.4,0.77]
[1745545719570,5.26977453,1772.7,1772.4,0.77]
[1745545719766,4.955,1772.7,1772.4,0.77]
[1745545720301,0.76386175,1772.5,1772.0,0.819]
[1745545720500,1.51736175,1772.2,1771.9,0.03091002]
[1745545720670,6.47236175,1772.2,1771.9,0.03091002]
[1745545720874,3.0,1772.1,1771.9,0.03091002]
[1745545721070,0.76386175,1772.0,1771.9,0.03091002]
[1745545721298,1.57986175,1772.0,1771.9,0.03091002]
[1745545721486,2.06932538,1772.0,1771.9,0.03091002]
[1745545721886,2.38409991,1772.0,1771.9,0.03091002]
[1745545722789,2.06932538,1772.0,1771.9,0.03091002]
[1745545724213,5.61932538,1772.0,1771.9,0.03091002]
[1745545724598,6.04718198,1772.0,1771.9,0.03091002]
[1745545725184,0.55,1771.7,1770.4,0.7759]
[1745545725378,0.76386175,1771.3,1770.4,0.7759]
[1745545725816,0.76386175,1771.3,1770.5,0.7884]
[1745545725994,4.956,1771.2,1770.6,0.7884]
[1745545727206,0.76386175,1770.9,1770.6,0.7884]
[1745545727408,0.8009,1770.6,1770.0,0.8072]
[1745545727579,0.76386175,1770.3,1770.0,0.8072]
[1745545727980,0.76386175,1770.3,1769.9,0.01307322]
[1745545728181,0.7591,1770.2,1769.9,0.01307322]
[1745545728414,4.956,1770.1,1769.9,0.01307322]
[1745545728600,6.29137175,1770.1,1769.9,0.01307322]
[1745545733503,3.0,1770.0,1769.9,0.01307322]
[1745545734307,5.52751,1770.1,1769.9,0.01307322]
[1745545735731,6.29137175,1770.1,1769.9,0.01307322]
[1745545736331,3.0,1770.0,1769.9,0.01307322]
[1745545736497,4.70893717,1770.0,1769.9,0.01307322]
[1745545736697,5.25893717,1770.0,1769.9,0.01307322]
[1745545736934,5.25161354,1770.0,1769.9,0.01307322]
[1745545738134,0.833,1769.8,1768.9,0.8052]
[1745545738297,0.76386175,1769.5,1768.9,0.8052]
[1745545738487,5.72486175,1769.7,1769.0,0.12417777]
[1745545738690,0.57248618,1769.6,1769.0,0.12417777]
[1745545739633,0.57248618,1769.6,1769.1,0.7857]
[1745545739930,4.961,1769.7,1769.3,0.7857]
[1745545740140,0.7933,1769.4,1768.3,0.7857]
[1745545740355,0.76386175,1768.7,1768.3,0.7857]
[1745545740629,5.72486175,1768.7,1768.3,0.7857]
[1745545740939,5.72486175,1768.7,1767.4,1.18808504]
[1745545740940,0.76386175,1768.4,1767.4,1.18808504]
[1745545741098,7.962,1768.3,1767.8,0.7739]
[1745545741296,0.7513,1768.6,1767.8,0.7739]
[1745545741496,4.962,1768.5,1767.8,0.7739]
[1745545741720,5.72586175,1768.5,1767.8,0.7739]
[1745545742330,4.962,1768.5,1767.8,0.7739]
[1745545742538,4.962,1768.5,1768.2,0.87634018]
[1745545743519,3.0,1768.4,1768.2,0.10634018]
[1745545743725,0.3,1768.3,1768.2,0.10634018]
[1745545745428,3.0,1768.4,1768.2,0.10634018]
[1745545747192,4.962,1768.5,1768.2,0.10634018]
[1745545750779,3.55,1769.1,1768.3,0.8251]
[1745545751082,4.962,1769.0,1768.3,0.8251]
[1745545757084,3.6839615,1768.8,1768.3,0.8251]
[1745545757264,0.36839615,1768.7,1768.3,0.8251]
[1745545757461,4.962,1768.6,1768.3,0.8251]
[1745545757662,8.6459615,1768.6,1768.3,0.8251]
[1745545758380,8.6459615,1768.6,1768.2,0.10634018]
[1745545759292,4.962,1768.6,1768.2,0.10634018]
[1745545762704,4.94730295,1768.6,1768.2,0.10634018]
[1745545763314,5.71485676,1768.6,1768.2,0.10634018]
[1745545764105,4.94730295,1768.6,1768.2,0.10634018]
[1745545767295,0.31411804,1768.8,1768.3,0.8093]
[1745545768373,5.27711804,1768.9,1768.3,0.8093]
[1745545769109,0.31411804,1768.8,1768.3,0.8093]
[1745545770122,5.27711804,1768.9,1768.3,0.8093]
[1745545771589,4.963,1768.9,1768.3,0.8093]
[1745545772318,5.27806045,1768.9,1768.3,0.8093]
[1745545774844,0.76755381,1768.8,1768.3,1.20086402]
[1745545775014,0.76755381,1768.8,1768.3,0.8093]
[1745545775351,0.76755381,1768.6,1768.3,0.8093]
[1745545775847,0.76755381,1768.4,1768.2,0.10634018]
[1745545779267,5.27706045,1768.5,1768.2,0.10634018]
[1745545781261,5.92378047,1768.5,1768.2,0.10634018]
[1745545782157,0.8156,1768.3,1768.2,0.10634018]
[1745545783560,1.08261426,1768.4,1768.2,0.10634018]
[1745545786866,0.31506045,1768.4,1768.2,0.89884018]
[1745545787566,5.27706045,1768.5,1768.2,0.89884018]
[1745545787863,5.92378047,1768.5,1768.2,0.89884018]
[1745545788267,5.60872002,1768.5,1768.2,0.89884018]
[1745545789161,5.92386867,1768.5,1768.2,0.89884018]
[1745545789836,0.76755381,1768.4,1768.2,0.10634018]
[1745545790933,1.55675381,1768.4,1768.2,0.10634018]
[1745545791267,2.27330119,1768.4,1768.2,0.10634018]
[1745545791454,2.58841179,1768.4,1768.2,0.10634018]
[1745545793669,1.79921179,1768.4,1768.2,0.10634018]
[1745545793999,4.962,1768.5,1768.2,0.10634018]
[1745545794693,0.76755381,1768.4,1768.2,0.10634018]
[1745545801105,0.7759,1768.3,1768.2,0.10634018]
[1745545801672,0.55,1768.3,1768.2,0.10634018]
[1745545801875,1.6776297,1768.3,1768.2,0.10634018]
[1745545802201,1.67214805,1768.3,1768.2,0.10634018]
[1745545803718,0.3150297,1768.4,1768.2,0.10634018]
[1745545804382,5.2790297,1768.6,1768.3,0.8069]
[1745545804585,0.76755381,1768.5,1768.3,0.8069]
[1745545804785,0.76755381,1768.5,1768.2,0.10634018]
[1745545805486,5.72955381,1768.5,1768.2,0.10634018]
[1745545805811,6.69738936,1768.5,1768.2,0.10634018]
[1745545806704,0.76755381,1768.3,1768.2,0.10634018]
[1745545809138,1.53855381,1768.3,1768.2,0.10634018]
[1745545809930,1.85378398,1768.3,1768.2,0.10634018]
[1745545811942,1.08278398,1768.3,1768.2,0.10634018]
[1745545812341,0.31523017,1768.3,1768.2,0.10634018]
[1745545812640,3.31523017,1768.4,1768.2,0.10634018]
[1745545813034,3.31523017,1768.4,1768.2,0.93864018]
[1745545813334,3.0,1768.4,1768.2,0.93864018]
[1745545813742,0.31532989,1768.4,1768.2,0.93864018]
[1745545814837,4.962,1768.5,1768.2,0.93864018]
[1745545815560,6.0448837,1768.7,1768.2,0.93864018]
[1745545816524,5.27732989,1768.7,1768.2,0.93864018]
[1745545816956,0.31532989,1768.7,1768.2,0.93864018]
[1745545817353,4.962,1768.9,1768.2,0.93864018]
[1745545817935,4.962,1768.9,1768.3,0.8184]
[1745545818140,0.76755381,1769.0,1768.3,0.8184]
[1745545818341,0.76755381,1769.0,1768.4,0.8184]
[1745545818855,1.08284486,1769.0,1768.4,0.8184]
[1745545819640,6.04484486,1769.0,1768.4,0.8184]
[1745545820367,5.72955381,1769.0,1768.4,0.8184]
[1745545822573,0.76755381,1769.0,1768.4,0.8184]
[1745545824973,1.64040919,1769.0,1768.4,0.8184]
[1745545825173,8.72855381,1769.1,1768.4,0.8184]
[1745545827208,3.76755381,1769.1,1768.4,0.8184]
[1745545827398,4.961,1769.0,1768.4,0.8184]
[1745545830212,0.76755381,1769.1,1768.4,0.8184]
[1745545830414,5.72855381,1769.1,1768.4,0.8184]
[1745545831005,4.961,1769.1,1768.5,0.7833]
[1745545831334,4.961,1769.3,1768.7,0.7592]
[1745545832024,4.961,1769.3,1768.9,0.7592]
[1745545832183,5.53385538,1769.3,1768.9,0.7592]
[1745545832383,0.76755381,1769.2,1768.9,0.7592]
[1745545833930,4.961,1769.3,1768.9,0.7592]
[1745545835319,0.76755381,1769.2,1768.9,0.7592]
[1745545836388,3.76755381,1769.2,1768.8,0.8322]
[1745545836605,4.34040919,1769.2,1768.8,0.8322]
[1745545836860,4.34040919,1769.2,1768.9,0.27066774]
[1745545837085,4.65522154,1769.2,1768.9,0.27066774]
[1745545839295,4.34040919,1769.2,1768.8,0.8322]
[1745545839595,4.65546499,1769.2,1769.0,0.27066392]
[1745545840118,4.65546499,1769.2,1768.8,0.8322]
[1745545840638,4.65546499,1769.2,1768.9,0.27100644]
[1745545841553,0.4655465,1769.1,1768.9,0.27100644]
[1745545842223,1.2628465,1769.1,1768.9,0.27100644]
[1745545842848,1.2628465,1769.1,1768.6,0.799]
[1745545843020,5.7553,1769.1,1769.0,0.26989719]
[1745545843224,5.7553,1769.1,1768.6,0.799]
[1745545843554,5.7553,1769.1,1768.7,0.27156208]
[1745545843845,5.7553,1769.1,1768.6,0.799]
[1745545844041,5.7553,1769.1,1768.8,0.27113981]
[1745545844366,5.7553,1769.1,1768.9,0.27071759]
[1745545844507,5.7553,1769.1,1768.6,0.799]
[1745545844707,5.7553,1769.1,1769.0,0.27029542]
[1745545844907,5.2737383,1769.1,1768.9,0.799]
[1745545845133,0.3157383,1769.1,1768.9,0.799]
[1745545845545,3.3157383,1769.2,1769.0,0.27050175]
[1745545845848,0.3157383,1769.2,1769.0,0.27050175]
[1745545846009,0.3157383,1769.2,1768.9,0.799]
[1745545846516,0.3157383,1769.2,1769.0,0.27017163]
[1745545846731,1.08329211,1769.3,1769.0,0.27017163]
[1745545846935,0.3157383,1769.3,1768.9,0.799]
[1745545848447,1.91066594,1769.3,1768.9,0.799]
[1745545849325,0.3157383,1769.2,1768.9,0.799]
[1745545849854,0.3157383,1769.2,1769.0,0.26980028]
[1745545850259,0.3157383,1769.2,1768.9,0.799]
[1745545850667,0.3157383,1769.2,1769.0,0.26980028]
[1745545850958,6.04129211,1769.3,1768.9,0.799]
[1745545851255,1.08329211,1769.3,1768.9,0.799]
[1745545851551,0.3157383,1769.3,1768.9,0.799]
[1745545852925,1.91066594,1769.3,1768.9,0.799]
[1745545853255,0.76755381,1769.1,1768.4,0.7529]
[1745545853621,0.3157383,1769.0,1768.5,0.27121017]
[1745545854044,0.3157383,1769.0,1768.6,0.7719]